bitfinex-derivatives/quotes_SOLF0:USTF0_20240820
["timestamp","ask_amount","ask_price","bid_price","bid_amount"]
[1724139313613,10.43,146.97,146.94,2.5926]
[1724139314016,10.43,146.97,146.96,3.4008]
[1724139314608,3.3999,147.01,146.94,2.5926]
[1724139314808,10.47956696,146.98,146.95,0.04544418]
[1724139315523,10.47956696,146.98,146.97,3.4006]
[1724139323410,0.04956696,146.98,146.97,3.4006]
[1724139323822,10.43,147.01,146.95,0.04544418]
[1724139324010,61.45914501,147.25,146.94,13.0226]
[1724139324011,10.43,147.03,146.97,10.43]
[1724139324413,10.43,147.03,147.02,3.3993]
[1724139329327,55.62323782,147.11,147.02,10.43]
[1724139329632,10.43,147.08,147.03,1.296]
[1724139329826,10.43,147.08,147.07,3.3981]
[1724139331126,0.05120974,147.09,147.08,3.3981]
[1724139331818,10.48120974,147.09,147.08,3.3981]
[1724139339130,0.05120974,147.09,147.08,3.3981]
[1724139340531,10.48120974,147.09,147.06,0.04876599]
[1724139340828,0.05120974,147.09,147.06,0.04876599]
[1724139341233,0.05120974,147.09,147.08,3.3981]
[1724139342735,10.48120974,147.09,147.06,0.04876599]
[1724139342936,10.43,147.07,147.06,0.04876599]
[1724139344642,13.8283,147.07,147.06,0.04876599]
[1724139353844,10.43,147.07,147.06,0.04876599]
[1724139356441,3.3983,147.08,147.06,0.04876599]
[1724139356644,10.43,147.07,147.06,0.04876599]
[1724139357137,13.8283,147.07,147.06,0.04876599]
[1724139360342,10.43,147.07,147.06,0.04876599]
[1724139360946,13.8283,147.07,147.06,0.04876599]
[1724139370247,10.43,147.07,147.02,3.3993]
[1724139370442,10.43,147.03,147.02,3.3993]
[1724139372155,0.05147366,147.04,147.02,3.3993]
[1724139372354,0.05147366,147.04,147.03,3.3992]
[1724139374454,10.48147366,147.04,147.02,3.3993]
[1724139374757,10.48147366,147.04,147.01,0.04870983]
[1724139374958,10.43,147.02,147.01,3.44820983]
[1724139376558,10.43,147.02,147.01,0.04870983]
[1724139377755,10.43,147.02,147.01,3.44840983]
[1724139378845,3.45057366,147.04,147.01,3.44840983]
[1724139379357,10.43,147.03,147.01,3.44840983]
[1724139380059,10.43,147.02,147.01,3.44840983]
[1724139382057,10.43,147.02,147.01,0.04870983]
[1724139382757,10.43,147.02,147.01,3.44840983]
[1724139383057,0.05147366,147.04,147.01,3.44840983]
[1724139383058,10.43,147.03,147.01,3.44840983]
[1724139384760,10.43,147.03,147.02,3.3995]
[1724139385357,3.3995,147.02,147.01,0.04870983]
[1724139385555,13.8295,147.02,147.01,0.04870983]
[1724139385955,10.43,147.02,147.01,0.04870983]
[1724139387458,13.8295,147.02,147.01,0.04870983]
[1724139389368,3.4004,146.99,146.96,65.18172914]
[1724139389572,13.8304,146.99,146.96,68.58242914]
[1724139390465,13.87462006,146.99,146.96,68.63218748]
[1724139391167,10.43,146.97,146.96,0.04975834]
[1724139391671,10.43,146.97,146.93,2.6614]
[1724139391870,10.43,146.95,146.93,6.0627]
[1724139392765,10.48119661,146.95,146.93,6.10596931]
[1724139393866,10.48119661,146.95,146.94,3.4013]
[1724139393867,0.05119661,146.95,146.94,3.4013]
[1724139395568,3.4006,146.97,146.95,3.401]
[1724139395769,3.39113586,147.03,146.93,14.38926931]
[1724139395975,10.43,146.99,146.93,14.346]
[1724139396271,10.43,146.99,146.96,3.4007]
[1724139396466,13.8303,146.99,146.96,3.4007]
[1724139396671,10.47603881,146.99,146.96,0.04865407]
[1724139396867,0.04603881,146.99,146.96,0.04865407]
[1724139397073,0.04603881,146.99,146.96,10.47865407]
[1724139397372,10.43,147.03,146.98,10.43]
[1724139397570,10.43,147.03,146.99,1.2821]
[1724139397973,10.43,147.03,147.0,3.3998]
[1724139398372,13.87957534,147.03,147.0,3.44344573]
[1724139399571,13.87957534,147.03,147.01,3.3997]
[1724139399775,10.48027534,147.03,147.01,3.3997]
[1724139400275,10.48027534,147.03,147.02,3.3995]
[1724139401476,0.05027534,147.03,147.02,3.3995]
[1724139401868,0.05027534,147.03,147.01,3.3997]
[1724139404477,10.48027534,147.03,147.01,3.3997]
[1724139405977,10.48027534,147.03,147.02,3.3995]
[1724139408982,0.05027534,147.03,147.02,3.3995]
[1724139414583,4.91177683,147.11,147.05,3.3987]
[1724139414584,10.43,147.07,147.05,3.3987]
[1724139415577,10.47863307,147.07,147.05,3.44906101]
[1724139420490,3.3985,147.06,147.05,0.05036101]
[1724139420791,13.8285,147.06,147.05,0.05036101]
[1724139420994,10.43,147.06,147.03,3.3992]
[1724139421198,10.43,147.04,147.01,3.3996]
[1724139421386,10.43,147.02,147.01,3.3996]
[1724139423090,10.43,147.02,147.0,0.05219595]
[1724139423287,10.43,147.01,147.0,0.05219595]
[1724139424093,10.43,147.01,147.0,3.45209595]
[1724139425787,10.43,147.01,147.0,0.05219595]
[1724139426893,10.43,147.01,147.0,3.45209595]
[1724139428794,13.8296,147.02,147.0,3.45209595]
[1724139429388,13.8297,147.01,147.0,0.05219595]
[1724139431999,3.4003,146.99,146.92,15.17038835]
[1724139432198,10.43,146.98,146.92,13.0598]
[1724139432798,10.43,146.98,146.92,16.41978]
[1724139433392,10.43,146.98,146.96,3.4007]
[1724139433592,10.43,146.98,146.94,0.04426261]
[1724139433796,0.04956446,146.98,146.94,0.04426261]
[1724139433994,0.04956446,146.98,146.94,1.40706261]
[1724139434794,0.04956446,146.98,146.97,3.4006]
[1724139436993,10.47956446,146.98,146.96,3.4008]
[1724139437699,10.47956446,146.98,146.97,3.4006]
[1724139438699,10.47956446,146.98,146.96,3.4007]
[1724139439808,10.47956446,146.98,146.97,3.4006]
[1724139441401,10.47956446,146.98,146.96,3.4007]
[1724139442107,13.87996446,146.98,146.96,3.4007]
[1724139443495,10.43,146.97,146.94,0.04426261]
[1724139444097,13.8308,146.97,146.95,3.401]
[1724139448904,3.45006446,146.98,146.94,0.04426261]
[1724139449104,13.88006446,146.98,146.94,0.04426261]
[1724139449902,13.88006446,146.98,146.96,3.4007]
[1724139451501,0.04956446,146.98,146.97,3.4006]
[1724139460803,10.47956446,146.98,146.97,3.4006]
[1724139464015,0.04956446,146.98,146.97,3.4006]
[1724139467329,54.66334501,147.2,146.97,10.43]
[1724139467510,20.26495048,147.11,147.04,10.43]
[1724139467715,3.3478645,147.13,147.06,10.43]
[1724139467915,6.33149197,147.18,147.07,10.43]
[1724139468117,2.8915,147.18,147.09,10.43]
[1724139468316,1.24870666,147.17,147.09,10.43]
[1724139468517,10.43,147.16,147.09,10.43]
[1724139468714,0.04975591,147.15,147.12,0.04845166]
[1724139469020,0.04975591,147.15,147.13,3.3968]
[1724139469326,0.04975591,147.15,147.12,0.04845166]
[1724139469521,0.04975591,147.15,147.14,3.3967]
[1724139470623,0.04975591,147.15,147.12,0.04845166]
[1724139470624,10.43,147.18,147.12,0.04845166]
[1724139470917,0.5926,147.22,147.12,0.04845166]
[1724139470918,10.43,147.15,147.12,0.04845166]
[1724139471225,10.43,147.13,147.12,0.04845166]
[1724139471423,10.43,147.13,147.06,1.247]
[1724139471721,10.43,147.11,147.06,1.247]
[1724139472322,10.43,147.11,147.1,3.3975]
[1724139473823,0.04383634,147.12,147.11,3.3974]
[1724139474123,10.47383634,147.12,147.11,3.3974]
[1724139476232,0.04383634,147.12,147.11,3.3974]
[1724139476417,10.43,147.15,147.14,3.3967]
[1724139477130,3.46921253,147.2,147.09,10.43]
[1724139477329,1.0047,147.25,147.11,10.43]
[1724139477541,10.43,147.18,147.12,2.7044]
[1724139477830,10.43,147.18,147.13,3.38668501]
[1724139478129,10.43,147.18,147.17,0.05070107]
[1724139478432,10.43,147.18,147.17,3.44670107]
[1724139478617,10.47582847,147.19,147.17,3.44670107]
[1724139479125,10.47582847,147.19,147.17,3.396]
[1724139479326,0.04582847,147.19,147.17,3.44527896]
[1724139479533,10.47582847,147.19,147.17,3.44527896]
[1724139480231,10.47582847,147.19,147.17,0.04927896]
[1724139480429,0.04582847,147.19,147.17,0.04927896]
[1724139480626,26.1,147.18,147.17,0.04927896]
[1724139481132,0.04582847,147.19,147.17,0.04927896]
[1724139481327,26.14582847,147.19,147.17,0.04927896]
[1724139482127,26.1,147.18,147.12,3.34954279]
[1724139482326,0.04582847,147.19,147.1,2.6741]
[1724139482526,26.1,147.17,147.15,3.3963]
[1724139483130,26.14549495,147.17,147.15,3.43965377]
[1724139483319,26.14549495,147.17,147.15,0.04335377]
[1724139483724,26.14549495,147.17,147.15,3.43965377]
[1724139484129,26.14549495,147.17,147.15,0.04335377]
[1724139484533,26.14549495,147.17,147.16,3.3962]
[1724139485240,0.04549495,147.17,147.15,3.43975377]
[1724139485431,26.14549495,147.17,147.15,0.04335377]
[1724139486129,26.14549495,147.17,147.16,3.3962]
[1724139487135,0.04549495,147.17,147.16,3.3962]
[1724139488530,1.0047,147.25,147.18,3.3957]
[1724139488728,1.3604,147.26,147.13,26.1]
[1724139488924,3.3946,147.24,147.13,26.1]
[1724139489124,2.4009,147.3,147.22,3.3948]
[1724139489328,2.4009,147.3,147.15,26.1]
[1724139489532,26.1,147.23,147.16,3.9095]
[1724139489733,26.1,147.23,147.19,3.3954]
[1724139489934,26.1,147.22,147.21,0.04877273]
[1724139490133,0.0447577,147.24,147.21,0.04877273]
[1724139490738,0.0447577,147.24,147.16,3.9095]
[1724139490739,0.0447577,147.24,147.16,6.0528]
[1724139490922,26.1,147.22,147.16,6.0528]
[1724139491121,26.1,147.22,147.11,26.1]
[1724139491122,0.0447577,147.24,147.05,6.7973]
[1724139491328,26.1,147.17,147.1,2.7252]
[1724139491530,2.9465,147.23,147.1,2.7252]
[1724139491835,26.1,147.16,147.1,2.7252]
[1724139492128,2.9465,147.23,147.1,2.7252]
[1724139492129,26.1,147.18,147.1,2.7252]
[1724139492334,26.1,147.18,147.15,3.44585597]
[1724139492532,0.04877764,147.18,147.15,0.04935597]
[1724139492741,0.04877764,147.18,147.16,3.396]
[1724139494727,0.04877764,147.18,147.15,3.44575597]
[1724139496031,0.04877764,147.18,147.15,0.04935597]
[1724139496724,3.44467764,147.18,147.15,0.04935597]
[1724139496927,26.14877764,147.18,147.15,0.04935597]
[1724139497130,3.3962,147.16,147.15,0.04935597]
[1724139497836,0.04877764,147.18,147.15,0.04935597]
[1724139498335,0.04877764,147.18,147.15,3.44565597]
[1724139498537,0.04877764,147.18,147.15,0.04935597]
[1724139501940,3.3962,147.17,147.15,0.04935597]
[1724139502244,26.14877764,147.18,147.15,0.04935597]
[1724139502445,10.44,147.17,147.15,0.04935597]
[1724139502645,3.3962,147.16,147.15,0.04935597]
[1724139503044,10.44,147.17,147.08,10.44]
[1724139503248,3.397,147.13,147.09,3.3977]
[1724139504041,0.05053978,147.12,147.1,0.04499526]
[1724139504351,3.44773978,147.12,147.1,0.04499526]
[1724139504949,0.05053978,147.12,147.1,0.04499526]
[1724139505848,0.05053978,147.12,147.03,26.11]
[1724139506045,26.11,147.14,147.03,26.11]
[1724139506248,3.3985,147.07,147.03,26.11]
[1724139506449,26.11,147.12,147.01,26.11]
[1724139506748,3.3984,147.07,147.05,0.04294628]
[1724139508553,3.3985,147.06,147.05,0.04294628]
[1724139509152,0.04972239,147.08,146.99,2.6037]
[1724139509362,26.15972239,147.08,146.99,27.3916]
[1724139509658,26.15972239,147.08,147.01,3.3997]
[1724139509844,27.1616,147.1,147.01,29.5097]
[1724139510244,3.3989,147.05,147.01,29.5097]
[1724139510442,0.04319395,147.07,147.04,0.04478243]
[1724139511852,0.04319395,147.07,147.04,3.44358243]
[1724139512055,0.04319395,147.07,147.04,26.15478243]
[1724139512259,53.44896724,147.16,147.07,3.3982]
[1724139512260,3.3975,147.11,147.07,3.3982]
[1724139512450,3.3975,147.11,147.08,26.11]
[1724139512648,3.47361849,147.14,147.08,26.11]
[1724139512855,3.3976,147.11,147.08,26.11]
[1724139513353,3.44746781,147.11,147.08,26.15793317]
[1724139514158,3.44746781,147.11,147.08,29.55593317]
[1724139514361,0.04986781,147.11,147.1,26.11]
[1724139514553,53.44896724,147.16,147.1,26.11]
[1724139514756,53.44896724,147.16,147.1,29.5075]
[1724139515057,4.67156647,147.17,147.1,26.11]
[1724139515858,3.3971,147.13,147.12,0.04656455]
[1724139518260,0.0444114,147.15,147.12,0.04656455]
[1724139519256,3.4410114,147.15,147.12,0.04656455]
[1724139519658,0.0444114,147.15,147.12,26.15656455]
[1724139520669,2.3723,147.22,147.14,26.11]
[1724139520855,1.3215,147.22,147.14,26.11]
[1724139521660,3.44369149,147.19,147.17,0.04496991]
[1724139522559,0.04799149,147.19,147.17,0.04496991]
[1724139522862,26.15799149,147.19,147.17,0.04496991]
[1724139523050,3.3964,147.16,147.12,3.3971]
[1724139523756,26.11,147.17,147.08,26.11]
[1724139523963,0.04623663,147.14,147.11,0.0444273]
[1724139524754,3.397,147.13,147.11,0.0444273]
[1724139525267,0.04623663,147.14,147.11,0.0444273]
[1724139526057,3.3971,147.13,147.11,0.0444273]
[1724139526859,3.44303663,147.14,147.11,0.0444273]
[1724139527270,0.04623663,147.14,147.11,0.0444273]
[1724139527762,0.04623663,147.14,147.11,3.4416273]
[1724139528364,3.44293663,147.14,147.11,3.4416273]
[1724139528670,3.44293663,147.14,147.11,0.0444273]
[1724139529260,3.44293663,147.14,147.11,3.4418273]
[1724139530569,3.44293663,147.14,147.11,0.0444273]
[1724139530862,0.04623663,147.14,147.11,0.0444273]
[1724139531770,3.3971,147.13,147.11,0.0444273]
[1724139532265,3.44303663,147.14,147.11,0.0444273]
[1724139533066,3.3969,147.13,147.11,0.0444273]
[1724139533264,0.04623663,147.14,147.11,0.0444273]
[1724139533861,3.44303663,147.14,147.11,0.0444273]
[1724139535070,3.3969,147.13,147.11,0.0444273]
[1724139537068,0.04623663,147.14,147.11,3.4418273]
[1724139537470,0.04623663,147.14,147.12,3.397]
[1724139537966,0.04623663,147.14,147.11,3.4417273]
[1724139538570,0.04623663,147.14,147.12,3.397]
[1724139539669,0.04623663,147.14,147.11,3.4417273]
[1724139540671,0.04623663,147.14,147.11,0.0444273]
[1724139541173,3.44313663,147.14,147.11,0.0444273]
[1724139541574,3.44313663,147.14,147.11,3.4418273]
[1724139542982,0.04623663,147.14,147.12,3.3971]
[1724139543670,0.04623663,147.14,147.11,0.0444273]
[1724139543871,0.04623663,147.14,147.13,3.3969]
[1724139547100,3.3961,147.17,147.14,3.3966]
[1724139547777,3.3958,147.18,147.15,3.3962]
[1724139548485,0.05201337,147.18,147.16,3.3962]
[1724139549479,0.05201337,147.18,147.17,3.396]
[1724139553280,3.395,147.22,147.18,3.3956]
[1724139554178,3.395,147.22,147.19,0.04908368]
[1724139554378,0.04515956,147.21,147.19,0.04908368]
[1724139554584,0.04970879,147.21,147.19,0.04908368]
[1724139555086,3.44490879,147.21,147.19,0.04908368]
[1724139556083,3.3953,147.2,147.19,0.04908368]
[1724139557783,3.44490879,147.21,147.19,0.04908368]
[1724139558187,0.04970879,147.21,147.19,0.04908368]
[1724139558583,3.3953,147.2,147.19,0.04908368]
[1724139560284,3.396,147.18,147.15,3.3964]
[1724139560888,3.3956,147.19,147.15,3.3964]
[1724139561289,0.0451515,147.18,147.16,0.05127031]
[1724139561490,13.8709515,147.18,147.16,0.05127031]
[1724139561684,10.4751515,147.18,147.16,0.05127031]
[1724139561885,13.826,147.17,147.16,0.05127031]
[1724139562083,10.43,147.17,147.12,7.2504]
[1724139562489,10.43,147.17,147.12,3.8535]
[1724139562490,3.3963,147.16,147.12,3.8535]
[1724139563086,3.3963,147.16,147.13,0.04555048]
[1724139563286,26.1,147.17,147.13,0.04555048]
[1724139563892,3.3964,147.16,147.13,0.04555048]
[1724139564191,26.1,147.17,147.13,0.04555048]
[1724139564494,3.3964,147.16,147.13,0.04555048]
[1724139567990,3.3964,147.16,147.13,3.44245048]
[1724139568491,0.0451515,147.18,147.15,3.3964]
[1724139568694,0.0451515,147.18,147.13,0.04555048]
[1724139569094,0.0451515,147.18,147.13,26.14555048]
[1724139569692,0.0451515,147.18,147.16,3.396]
[1724139570194,0.0451515,147.18,147.15,3.3964]
[1724139570499,0.0451515,147.18,147.13,0.04555048]
[1724139570997,3.3961,147.17,147.14,3.3966]
[1724139571689,3.4409515,147.18,147.14,3.3966]
[1724139573000,3.396,147.17,147.14,3.3966]
[1724139573789,3.3963,147.16,147.13,0.04555048]
[1724139574703,3.3963,147.16,147.13,3.44235048]
[1724139575103,3.3961,147.17,147.13,0.04555048]
[1724139575400,3.3961,147.17,147.14,3.3967]
[1724139575800,3.3961,147.17,147.13,3.44235048]
[1724139576003,3.3962,147.16,147.13,3.44235048]
[1724139578898,26.1451515,147.18,147.13,0.04555048]
[1724139579099,29.58965941,147.18,147.13,0.04555048]
[1724139579604,3.3964,147.16,147.13,0.04555048]
[1724139579991,3.3964,147.16,147.13,3.44235048]
[1724139580396,3.3965,147.15,147.13,0.04555048]
[1724139580596,26.1,147.16,147.13,0.04555048]
[1724139581095,29.4967,147.14,147.13,0.04555048]
[1724139581504,29.4967,147.14,147.13,0.01135528]
[1724139581699,29.4967,147.14,147.05,3.9704]
[1724139581700,3.3975,147.11,147.05,3.9704]
[1724139581901,26.1,147.12,147.05,3.9704]
[1724139582098,26.1,147.12,147.06,3.3983]
[1724139582299,3.3977,147.1,147.05,3.9704]
[1724139582997,3.3977,147.1,147.06,3.3984]
[1724139583203,0.04643579,147.09,147.06,3.44782234]
[1724139583503,0.04643579,147.09,147.06,0.04942234]
[1724139583802,0.04643579,147.09,147.07,3.3982]
[1724139584702,0.04643579,147.09,147.06,0.04942234]
[1724139585301,3.44443579,147.09,147.06,0.04942234]
[1724139585792,3.3981,147.08,147.06,0.04942234]
[1724139586515,3.3983,147.07,147.06,0.04942234]
[1724139588012,3.3982,147.08,147.06,0.04942234]
[1724139588396,0.04643579,147.09,147.06,0.04942234]
[1724139589809,26.12643579,147.09,147.06,0.04942234]
[1724139590011,3.3983,147.07,147.06,0.04942234]
[1724139590404,29.4783,147.07,147.06,0.04942234]
[1724139591101,26.08,147.07,147.0,3.3998]
[1724139592005,3.44372353,147.05,147.02,0.0519233]
[1724139592207,0.04482353,147.05,147.02,0.0519233]
[1724139592412,0.04482353,147.05,147.02,3.4512233]
[1724139594707,3.44362353,147.05,147.02,3.4512233]
[1724139597807,0.04482353,147.05,147.02,3.4512233]
[1724139600612,3.44362353,147.05,147.02,0.0519233]
[1724139600815,0.04482353,147.05,147.02,0.0519233]
[1724139601407,0.04482353,147.05,147.02,3.4513233]
[1724139602821,3.44372353,147.05,147.02,3.4513233]
[1724139603414,0.04482353,147.05,147.02,3.4513233]
[1724139605522,0.04482353,147.05,147.02,10.4919233]
[1724139606020,0.04482353,147.05,147.03,3.3991]
[1724139606718,0.04482353,147.05,147.04,3.399]
[1724139608817,3.3979,147.09,147.06,3.3984]
[1724139609215,3.3979,147.09,147.03,10.44]
[1724139609814,3.3981,147.08,147.05,3.44697766]
[1724139610118,10.44,147.11,147.05,0.04837766]
[1724139610119,0.04629555,147.07,147.05,0.04837766]
[1724139611014,0.04629555,147.07,147.06,3.3985]
[1724139611813,0.04629555,147.07,147.05,0.04837766]
[1724139612120,0.04629555,147.07,147.05,3.44707766]
[1724139612317,0.04629555,147.07,147.05,0.04837766]
[1724139612521,0.04629555,147.07,147.06,3.3985]
[1724139615018,0.04629555,147.07,147.05,3.44697766]
[1724139615725,0.04629555,147.07,147.05,0.04837766]
[1724139616820,0.04629555,147.07,147.05,3.44707766]
[1724139617225,10.48629555,147.07,147.05,0.04837766]
[1724139617821,13.88469555,147.07,147.05,0.04837766]
[1724139618020,10.48629555,147.07,147.05,0.04837766]
[1724139618427,3.3985,147.06,147.05,0.04837766]
[1724139626928,3.44469555,147.07,147.05,0.04837766]
[1724139627433,0.04629555,147.07,147.05,0.04837766]
[1724139627732,0.04629555,147.07,147.05,3.44707766]
[1724139627927,0.04629555,147.07,147.05,0.04837766]
[1724139629231,0.04629555,147.07,147.05,13.88707766]
[1724139629736,0.04629555,147.07,147.05,10.48837766]
[1724139630334,0.04629555,147.07,147.05,13.88707766]
[1724139630537,0.04629555,147.07,147.05,3.44707766]
[1724139633435,0.04629555,147.07,147.06,3.3985]
[1724139633636,3.3977,147.1,147.05,10.48837766]
[1724139634340,3.3977,147.1,147.06,3.3984]
[1724139634839,0.04380914,147.09,147.06,3.3984]
[1724139636733,1.2421,147.17,147.07,10.44]
[1724139636928,10.44,147.14,147.07,10.44]
[1724139637138,3.3972,147.12,147.08,4.67]
[1724139637829,0.0522966,147.11,147.09,3.44081834]
[1724139638434,0.0522966,147.11,147.1,3.3976]
[1724139638636,0.0522966,147.11,147.1,13.8376]
[1724139640239,13.84772727,147.18,147.1,10.44]
[1724139640542,10.44,147.2,147.13,10.44]
[1724139640739,3.3959,147.18,147.14,3.3966]
[1724139641341,0.04525011,147.17,147.15,0.05007868]
[1724139642944,3.44125011,147.17,147.15,0.05007868]
[1724139643145,13.88125011,147.17,147.15,0.05007868]
[1724139645941,0.04525011,147.17,147.15,0.05007868]
[1724139646557,0.04525011,147.17,147.15,3.44637868]
[1724139647349,0.04525011,147.17,147.15,0.05007868]
[1724139647744,17.28883779,147.17,147.15,0.05007868]
[1724139648046,13.88145011,147.17,147.15,0.05007868]
[1724139648249,3.3962,147.16,147.15,0.05007868]
[1724139650343,17.34205251,147.17,147.15,0.05007868]
[1724139650545,13.94595251,147.17,147.15,0.05007868]
[1724139651144,3.3962,147.16,147.15,0.05007868]
[1724139652644,3.3969,147.13,147.08,1.2721]
[1724139652852,10.44,147.12,147.08,1.2721]
[1724139653446,10.44,147.12,147.08,4.6699]
[1724139653646,10.44,147.12,147.08,1.2721]
[1724139653850,0.05179557,147.11,147.09,0.0436766]
[1724139654555,0.05179557,147.11,147.1,3.3976]
[1724139655059,0.05179557,147.11,147.09,3.4413766]
[1724139656859,0.05179557,147.11,147.09,0.0436766]
[1724139658361,10.44,147.1,147.09,0.0436766]
[1724139658749,13.8376,147.1,147.09,0.0436766]
[1724139660954,3.3976,147.1,147.09,0.0436766]
[1724139661158,13.88929557,147.11,147.09,0.0436766]
[1724139661570,0.05179557,147.11,147.09,0.0436766]
[1724139661857,10.49179557,147.11,147.09,0.0436766]
[1724139662056,0.05179557,147.11,147.09,0.0436766]
[1724139662464,3.44929557,147.11,147.09,0.0436766]
[1724139663558,13.8376,147.1,147.09,0.0436766]
[1724139664859,3.3985,147.07,147.02,11.7689]
[1724139665062,13.8385,147.07,147.02,11.7689]
[1724139665973,13.8385,147.07,147.03,3.3992]
[1724139666562,0.05170493,147.06,147.03,3.44871966]
[1724139666960,0.05170493,147.06,147.04,3.3988]
[1724139667474,0.05170493,147.06,147.03,10.48951966]
[1724139667768,0.05170493,147.06,147.04,3.3988]
[1724139668066,0.05170493,147.06,147.03,0.04951966]
[1724139668367,0.05170493,147.06,147.03,3.44861966]
[1724139669469,3.45020493,147.06,147.03,0.04951966]
[1724139670366,3.45020493,147.06,147.03,3.44871966]
[1724139672369,3.45020493,147.06,147.03,13.88871966]
[1724139673760,0.05170493,147.06,147.03,10.48951966]
[1724139673961,0.05170493,147.06,147.03,0.04951966]
[1724139674364,3.3991,147.05,147.03,0.04951966]
[1724139675172,3.3992,147.04,147.03,0.04951966]
[1724139675374,0.05170493,147.06,147.03,0.04951966]
[1724139675575,3.3992,147.05,147.03,0.04951966]
[1724139677369,3.45050493,147.06,147.03,3.44891966]
[1724139677972,0.05170493,147.06,147.03,3.44891966]
[1724139679977,3.45050493,147.06,147.04,3.47552498]
[1724139680576,0.05170493,147.06,147.04,6.87472498]
[1724139680975,0.05170493,147.06,147.04,3.3992]
[1724139691783,3.45050493,147.06,147.03,0.04951966]
[1724139691983,13.89050493,147.06,147.03,0.04951966]
[1724139692488,3.45050493,147.06,147.03,3.44891966]
[1724139697293,3.45050493,147.06,147.04,3.40201186]
[1724139697793,0.05170493,147.06,147.03,3.44891966]
[1724139698089,0.05170493,147.06,147.04,3.3992]
[1724139699386,0.05170493,147.06,147.05,3.399]
[1724139702800,0.05170493,147.06,147.05,13.839]
[1724139703191,48.32253683,147.15,147.08,3.3981]
[1724139703495,10.44,147.14,147.08,13.8381]
[1724139703894,3.3977,147.11,147.08,13.8381]
[1724139704098,3.3977,147.11,147.08,3.3981]
[1724139704501,3.44089907,147.11,147.08,3.3981]
[1724139704699,3.44089907,147.11,147.08,3.44902302]
[1724139705600,0.04319907,147.11,147.08,3.44902302]
[1724139705795,0.04319907,147.11,147.08,10.49092302]
[1724139706606,0.04319907,147.11,147.09,10.44]
[1724139707117,10.44,147.17,147.1,10.44]
[1724139707411,3.3966,147.16,147.12,3.3972]
[1724139708013,0.04375212,147.15,147.13,0.04308245]
[1724139710912,10.48375212,147.15,147.13,0.04308245]
[1724139711121,10.44,147.14,147.13,0.04308245]
[1724139713016,10.48375212,147.15,147.13,0.04308245]
[1724139713517,10.48375212,147.15,147.13,3.44018245]
[1724139714113,0.04375212,147.15,147.13,3.44018245]
[1724139715617,10.44,147.14,147.13,0.04308245]
[1724139719714,13.8369,147.14,147.13,0.04308245]
[1724139721319,3.3972,147.13,147.09,1.3396]
[1724139721519,10.44,147.12,147.09,1.3396]
[1724139722531,3.43141555,147.18,147.09,11.82414267]
[1724139722728,10.44,147.16,147.1,1.378]
[1724139722929,0.04345726,147.15,147.12,0.04440201]
[1724139723125,0.04345726,147.15,147.13,3.3971]
[1724139724530,21.5862,147.22,147.12,0.04440201]
[1724139724531,20.9832,147.25,147.14,10.44]
[1724139724729,10.44,147.21,147.15,10.44]
[1724139725133,10.44,147.21,147.16,2.7455]
[1724139725530,3.3957,147.2,147.16,2.7455]
[1724139725829,10.44,147.19,147.15,3.3966]
[1724139726227,10.44,147.17,147.14,3.3969]
[1724139726626,10.44,147.17,147.13,1.3675]
[1724139726922,10.44,147.18,147.17,0.04727627]
[1724139727126,10.44,147.18,147.16,3.3963]
[1724139727429,0.04635357,147.17,147.16,3.44340884]
[1724139729439,13.8354,147.21,147.17,3.396]
[1724139730733,13.8354,147.21,147.17,3.3961]
[1724139730923,0.04843161,147.2,147.17,3.3961]
[1724139731324,0.04843161,147.2,147.16,10.48710884]
[1724139731530,0.04843161,147.2,147.18,10.44]
[1724139732137,0.04843161,147.2,147.19,3.3958]
[1724139732329,0.04843161,147.2,147.16,0.04710884]
[1724139732734,0.04843161,147.2,147.18,3.3959]
[1724139734141,0.04843161,147.2,147.19,3.3958]
[1724139734837,0.04843161,147.2,147.18,3.3959]
[1724139736142,10.48843161,147.2,147.16,0.04710884]
[1724139736342,10.44,147.18,147.16,0.04710884]
[1724139737634,10.44,147.18,147.16,3.44360884]
[1724139739645,10.44,147.18,147.16,0.04710884]